bitfinex/quotes_ETHUSD_20241106
["timestamp","ask_amount","ask_price","bid_price","bid_amount"]
[1730921977128,0.55,2662.1,2661.0,0.01]
[1730921977607,0.55,2662.1,2661.2,0.01]
[1730921978207,0.55,2662.1,2661.0,0.01]
[1730921978536,0.7505,2662.0,2660.9,0.01]
[1730921978846,0.55,2661.9,2660.9,0.01]
[1730921979007,0.55,2661.9,2660.6,0.01]
[1730921979462,0.55,2661.7,2660.6,0.01]
[1730921979833,0.01,2661.4,2659.8,0.01]
[1730921980177,0.55,2661.3,2659.8,0.08517176]
[1730921980478,0.02435911,2661.2,2659.8,0.08517176]
[1730921980760,0.02435911,2661.2,2659.8,0.01]
[1730921981817,0.02435911,2661.2,2659.8,0.08517345]
[1730921982436,0.02435911,2661.2,2660.0,0.01]
[1730921982671,0.03435911,2661.7,2660.2,0.01]
[1730921982826,0.75139734,2661.3,2660.2,0.01]
[1730921983166,0.02435911,2661.2,2660.2,0.07515998]
[1730921983351,0.03435911,2661.7,2660.0,0.01]
[1730921984084,0.55,2661.6,2660.0,0.01]
[1730921984370,0.02435911,2661.5,2660.0,0.01]
[1730921986144,0.01,2661.3,2660.0,0.01]
[1730921986345,0.03435911,2661.3,2660.0,0.01]
[1730921987072,0.55,2661.2,2659.7,0.635]
[1730921987370,0.02435911,2661.1,2659.7,0.635]
[1730921988071,0.02435911,2661.1,2659.8,0.07517376]
[1730921988276,0.02435911,2661.1,2659.9,0.01]
[1730921988570,0.55,2661.4,2659.9,0.01]
[1730921988769,0.02435911,2661.3,2659.9,0.01]
[1730921989753,0.02435911,2661.4,2659.9,0.01]
[1730921990754,0.55,2661.3,2659.9,0.01]
[1730921990956,0.02435911,2661.2,2659.9,0.01]
[1730921994045,0.02435911,2661.2,2659.7,0.625]
[1730921994266,0.55,2661.1,2659.8,0.0751736]
[1730921994579,0.01,2660.6,2659.7,0.625]
[1730921994761,0.55,2660.5,2659.7,0.625]
[1730921994984,0.02435911,2660.4,2659.7,0.625]
[1730921996104,0.55,2660.3,2659.7,0.625]
[1730921996242,0.01,2660.1,2659.7,0.16]
[1730921996445,0.57435911,2660.0,2659.4,0.005]
[1730921996860,0.02435911,2660.0,2659.4,0.005]
[1730921997068,0.57435911,2660.0,2659.4,0.005]
[1730921997405,0.02435911,2660.0,2659.4,0.005]
[1730921997556,0.55,2660.2,2659.4,0.005]
[1730921997557,0.02435911,2660.1,2659.4,0.005]
[1730921998711,0.02435911,2660.2,2659.4,0.005]
[1730922003370,0.56,2660.0,2659.4,0.005]
[1730922003567,0.02435911,2659.9,2659.4,0.005]
[1730922003881,0.56,2659.8,2659.4,0.005]
[1730922004064,0.02435911,2659.7,2659.4,0.005]
[1730922004997,0.03435911,2659.8,2659.4,0.005]
[1730922005195,0.55,2659.7,2659.4,0.005]
[1730922005500,0.02435911,2659.6,2659.4,0.005]
[1730922005868,0.01,2660.0,2659.4,0.005]
[1730922006077,0.02435911,2660.0,2659.4,0.005]
[1730922006273,0.03435911,2660.0,2659.4,0.005]
[1730922006601,0.02435911,2660.0,2659.4,0.005]
[1730922006755,0.01,2660.2,2659.4,0.005]
[1730922006958,0.03435911,2660.2,2659.4,0.005]
[1730922007464,0.01,2660.4,2659.4,0.005]
[1730922008092,0.01,2660.6,2659.4,0.005]
[1730922008296,0.02435911,2660.5,2659.4,0.005]
[1730922008958,0.02435911,2660.5,2659.4,0.08018694]
[1730922009157,0.02435911,2660.7,2659.4,0.005]
[1730922009573,0.01,2660.3,2659.4,0.005]
[1730922009902,0.03435911,2660.3,2659.4,0.005]
[1730922010091,0.01,2660.0,2659.4,0.005]
[1730922010786,0.03435911,2660.0,2659.4,0.005]
[1730922011167,0.02435911,2660.0,2659.4,0.005]
[1730922011405,0.03435911,2660.0,2659.4,0.005]
[1730922011700,0.02435911,2660.0,2659.4,0.005]
[1730922011920,0.02435911,2660.1,2659.4,0.005]
[1730922012407,0.01,2660.4,2659.4,0.005]
[1730922012578,0.02435911,2660.3,2659.4,0.005]
[1730922013600,0.74503333,2660.6,2659.4,0.005]
[1730922013771,0.02435911,2660.5,2659.4,0.005]
[1730922014363,0.74671253,2660.8,2659.6,0.01]
[1730922014563,0.08972893,2661.3,2660.2,0.01]
[1730922014764,1.65338287,2661.4,2660.2,2.15561592]
[1730922014988,0.01,2661.6,2660.3,0.21556159]
[1730922015194,0.01,2661.6,2660.2,0.01]
[1730922015963,0.55,2661.7,2660.2,0.01]
[1730922016212,0.55,2661.7,2660.2,0.08516119]
[1730922016405,0.89629926,2661.8,2660.2,1.21375678]
[1730922016607,0.01,2662.0,2660.4,0.01]
[1730922016815,0.8299,2662.3,2660.2,1.20375678]
[1730922016816,0.01,2661.8,2660.3,1.68859559]
[1730922016963,0.01,2661.8,2660.4,0.26233459]
[1730922017167,0.01,2661.8,2660.2,0.01]
[1730922017399,0.01,2661.8,2660.4,0.01]
[1730922018428,0.01,2661.8,2660.2,0.01]
[1730922019535,0.01,2661.8,2660.2,0.08516181]
[1730922019709,0.01,2661.8,2660.2,0.01]
[1730922020095,0.01,2661.8,2660.2,0.08516187]
[1730922020535,0.01,2661.8,2660.3,0.93475033]
[1730922020749,0.01,2661.8,2660.4,0.07516179]
[1730922021042,0.01,2661.8,2660.3,0.93475033]
[1730922021935,0.01,2662.0,2660.4,0.07516184]
[1730922022246,0.01,2662.0,2660.2,0.01]
[1730922022456,0.01,2662.0,2660.2,0.08516185]
[1730922022735,0.01,2661.8,2660.2,0.01]
[1730922023342,0.55,2661.6,2660.0,0.0563746]
[1730922023510,0.56,2661.6,2660.0,0.0563746]
[1730922024127,0.56,2661.6,2660.1,0.07516978]
[1730922024297,0.56,2661.6,2660.1,0.08516978]
[1730922024642,0.56,2661.6,2660.1,0.01]
[1730922025133,0.01,2661.8,2660.3,0.01]
[1730922025313,0.55,2661.9,2660.3,0.01]
[1730922025898,0.8121,2662.3,2660.3,0.01]
[1730922025899,0.01,2661.8,2660.3,0.01]
[1730922026094,0.01,2662.0,2660.3,0.08515827]
[1730922026299,0.01,2661.8,2660.3,0.08515827]
[1730922026500,0.01,2662.0,2660.3,1.0199086]
[1730922027006,0.01,2661.8,2660.3,1.0199086]
[1730922027544,0.01,2661.8,2660.3,0.94475033]
[1730922027752,0.01,2662.0,2660.5,0.01]
[1730922027913,0.01,2662.0,2660.5,0.94475033]
[1730922029347,0.01,2662.0,2660.6,0.07515097]
[1730922029906,0.55,2662.1,2660.6,0.07515097]
[1730922030131,0.78234183,2662.1,2660.6,0.07515097]
[1730922030642,0.23234183,2662.1,2660.7,0.01]
[1730922030847,0.75588403,2662.2,2660.7,0.94475033]
[1730922031053,0.01,2662.4,2660.5,0.01]
[1730922031352,2.31423496,2662.7,2660.1,0.55]
[1730922031353,0.01,2662.0,2660.1,0.01]
[1730922031659,0.01,2661.8,2660.1,0.01]
[1730922032151,0.06631657,2661.7,2660.1,0.01]
[1730922032316,0.06631657,2661.7,2660.2,0.93475033]
[1730922032654,0.06631657,2661.7,2660.3,0.07516061]
[1730922033013,0.01,2661.8,2660.3,0.07516061]
[1730922033655,0.06520062,2661.7,2660.3,0.07516061]
[1730922034011,0.06520062,2661.7,2660.3,1.00991094]
[1730922034240,0.06520062,2661.7,2660.5,0.01]
[1730922034621,0.01,2661.8,2660.5,0.01]
[1730922034954,0.06513876,2661.7,2660.5,0.01]
[1730922035546,0.01,2662.0,2660.5,0.01]
[1730922035850,0.06505872,2661.6,2660.3,0.56]
[1730922036010,0.01,2661.8,2660.3,0.56]
[1730922036443,0.06513876,2661.7,2660.3,0.56]
[1730922036830,0.01,2662.0,2660.3,0.56]
[1730922037134,0.06529881,2661.9,2660.3,0.56]
[1730922038051,0.01,2661.8,2660.3,0.56]
[1730922038351,0.56,2661.8,2660.4,0.07515284]
[1730922039044,0.06513876,2661.7,2660.6,0.01]
[1730922039357,0.01,2662.0,2660.3,0.56]
[1730922039518,0.06505872,2661.6,2660.2,0.05636985]
[1730922039852,0.01,2662.0,2660.2,0.05636985]
[1730922040171,0.06532302,2661.9,2660.3,0.07516097]
[1730922040316,0.55,2661.8,2660.3,1.41753941]
[1730922040655,0.06516297,2661.7,2660.3,1.0099113]
[1730922040840,0.06516297,2661.7,2660.4,0.05637004]
[1730922041010,0.06516297,2661.7,2660.5,0.07516093]
[1730922042925,0.06516297,2661.7,2660.4,0.05637004]
[1730922043952,0.06516297,2661.7,2660.1,0.74294804]
[1730922044528,0.06516297,2661.7,2660.2,0.65778716]
[1730922044727,0.06516297,2661.7,2660.3,0.07516088]
[1730922045641,0.06516297,2661.7,2660.4,0.05637163]
[1730922045819,0.06516297,2661.7,2660.5,0.07515776]
[1730922046456,0.84652538,2661.7,2660.5,0.07515776]
[1730922046629,0.06516297,2661.7,2660.5,0.65778716]
[1730922046965,0.01,2662.5,2660.8,0.01]
[1730922047119,0.34618695,2662.5,2660.8,0.01]
[1730922047319,0.06555044,2662.4,2660.8,0.08514081]
[1730922047552,0.06555044,2662.4,2660.8,0.74292797]
[1730922047760,0.06555044,2662.4,2661.1,0.01]
[1730922047966,1.59,2661.0,2660.9,1.20778716]
[1730922048227,0.06442996,2661.0,2660.9,17.34278716]
[1730922048542,0.01,2662.5,2660.9,17.86927872]
[1730922048744,0.8389,2662.4,2660.9,1.73427872]
[1730922048925,0.02,2662.2,2660.6,0.65778716]
[1730922049272,0.57,2662.0,2660.4,0.05637163]
[1730922049424,0.06300274,2661.9,2660.4,0.05637163]
[1730922049765,0.06300274,2661.9,2660.5,0.65778716]
[1730922050063,0.06300274,2661.9,2660.6,0.07515154]
[1730922050269,0.02,2662.2,2660.6,0.7329387]
[1730922050472,0.02,2662.2,2660.7,0.65778716]
[1730922050473,0.01,2662.2,2660.7,0.65778716]
[1730922050632,0.02,2662.2,2660.8,0.07515154]
[1730922050943,0.06316277,2662.1,2660.8,0.07515154]
[1730922052267,0.06316277,2662.1,2660.5,0.07515148]
[1730922052465,0.06316277,2662.1,2660.6,0.55]
[1730922052628,0.06316277,2662.1,2660.7,0.07514247]
[1730922053630,0.06316277,2662.1,2660.8,0.55]
[1730922053829,0.06316277,2662.1,2660.9,1.01275242]
[1730922054075,0.06316277,2662.1,2660.7,0.55]
[1730922054374,0.01,2662.4,2660.7,3.55]
[1730922054674,0.7799,2662.3,2660.7,3.55]
[1730922054830,0.01,2662.2,2660.7,3.0]
[1730922055151,0.01,2662.0,2660.8,0.35826205]
[1730922055354,0.83213565,2661.9,2660.4,0.05637163]
[1730922055744,0.56,2661.8,2660.4,0.05637163]
[1730922055970,0.05700786,2661.7,2660.4,0.05637163]
[1730922056468,0.05700786,2661.7,2660.5,0.07515742]
[1730922056875,0.05700786,2661.7,2660.5,0.65777791]
[1730922057070,0.8033,2662.0,2660.5,0.58262049]
[1730922057269,0.05716792,2661.9,2660.5,0.58262049]
[1730922057444,0.57,2661.8,2660.4,0.05637163]
[1730922057644,0.01,2661.6,2660.4,0.05637163]
[1730922057848,0.05681014,2661.5,2660.4,0.05637163]
[1730922058256,0.67454325,2661.5,2660.4,0.05637163]
[1730922058430,0.05681014,2661.5,2660.4,0.05637163]
[1730922060662,0.05681014,2661.5,2660.5,0.07515429]
[1730922060862,0.7899,2661.9,2660.5,0.62515148]
[1730922061202,0.05696687,2661.8,2660.5,0.55]
[1730922062395,0.05696687,2661.8,2660.6,0.07514414]
[1730922062611,0.05696687,2661.8,2660.5,0.55]
[1730922062759,0.8166,2662.1,2660.6,0.07514407]
[1730922062963,0.0572318,2662.0,2660.7,0.55]
[1730922063371,0.0572318,2662.0,2660.6,0.55]
[1730922063763,0.0572318,2662.0,2660.8,0.55]
[1730922064002,0.0572318,2662.0,2660.9,0.07513792]
[1730922064205,0.0572318,2662.0,2660.4,0.05637163]
[1730922064206,0.8178,2661.9,2660.4,0.05637163]
[1730922064403,0.8178,2661.9,2660.5,0.07514948]
[1730922064610,0.05711747,2661.8,2660.5,0.07514948]
[1730922064998,0.05711747,2661.8,2660.4,0.05637163]
[1730922065320,0.7698,2660.5,2660.4,0.05637163]
[1730922065482,0.01,2660.1,2658.4,0.59286327]
[1730922065667,0.05563028,2660.0,2659.0,0.7748]
[1730922066102,3.65298724,2660.4,2659.0,0.7748]
[1730922066304,5.31958152,2660.2,2659.0,0.7748]
[1730922066527,2.3749586,2660.1,2659.0,0.7748]
[1730922067092,0.05537708,2660.1,2659.0,0.005]
[1730922067319,0.44713603,2660.0,2659.0,0.005]
[1730922067532,0.39951698,2659.9,2659.0,0.005]
[1730922067738,1.73377506,2659.8,2659.0,0.005]
[1730922067897,0.39935668,2659.7,2659.0,0.005]
[1730922068101,0.3447145,2659.6,2659.0,0.005]
[1730922068297,0.39919098,2659.5,2659.0,0.005]
[1730922068601,3.0,2660.2,2659.0,0.005]
[1730922068798,0.34436546,2660.1,2659.4,0.7748]
[1730922069020,0.34436546,2660.0,2659.4,0.7748]
[1730922069232,0.34436546,2659.9,2659.4,0.7748]
[1730922069544,0.34436546,2659.8,2659.4,0.7748]
[1730922069702,0.34436546,2659.7,2659.4,0.7748]
[1730922069900,4.6e-07,2659.6,2659.4,0.7748]
[1730922070111,0.8063,2660.2,2659.5,13.146]
[1730922070294,0.8063,2660.2,2659.5,1.39208]
[1730922070642,0.8063,2660.2,2659.4,0.7748]
[1730922071730,0.8063,2660.2,2659.4,0.005]
[1730922073698,0.04753345,2660.1,2659.4,0.005]
[1730922073991,0.7704,2660.0,2659.4,0.005]
[1730922074446,0.04731664,2659.9,2659.4,0.005]
[1730922081516,0.7955,2659.8,2659.4,0.005]
[1730922082025,0.04361036,2659.7,2659.4,0.005]
[1730922082527,0.04350597,2659.6,2659.4,0.005]
[1730922082739,0.7955,2659.8,2659.4,0.005]
[1730922083047,0.04360229,2659.7,2659.4,0.005]
[1730922083366,0.7955,2659.8,2659.4,0.005]
[1730922083569,0.04357806,2659.7,2659.4,0.005]
[1730922083723,0.7955,2659.8,2659.4,0.005]
[1730922084049,0.04353677,2659.7,2659.4,0.005]
[1730922084368,0.7955,2659.8,2659.4,0.005]
[1730922084572,0.04220218,2659.7,2659.4,0.005]
[1730922084769,0.7955,2659.8,2659.4,0.005]
[1730922084926,0.04085923,2659.7,2659.4,0.005]
[1730922085128,0.77945999,2660.0,2659.4,0.005]
[1730922085343,0.04101952,2659.9,2659.4,0.005]
[1730922085591,0.7971,2660.1,2659.4,0.005]
[1730922085769,0.04093938,2659.8,2659.4,0.005]
[1730922085974,0.7971,2660.1,2659.4,0.005]
[1730922086175,0.04085923,2659.7,2659.4,0.005]
[1730922086375,0.7971,2660.1,2659.4,0.005]
[1730922086758,0.03974036,2660.0,2659.4,0.005]
[1730922092963,0.03974036,2660.0,2659.5,13.9138]
[1730922093214,0.8196,2661.3,2659.6,1.39188]
[1730922093385,1.503895,2660.8,2659.5,0.7698]
[1730922093583,1.16274338,2660.7,2659.5,0.7698]
[1730922093904,0.34314338,2660.6,2659.5,0.7698]
[1730922094211,0.04543461,2660.5,2659.5,0.7698]
[1730922094365,0.34314338,2660.4,2659.5,0.7698]
[1730922094712,0.04523433,2660.3,2659.5,0.7698]
[1730922095014,0.34332329,2660.2,2659.5,0.7698]
[1730922095162,0.04523433,2660.3,2659.5,0.7698]
[1730922095361,0.34336306,2660.2,2659.5,0.7698]
[1730922095567,0.04503402,2660.1,2659.5,0.7698]
[1730922095969,0.27122732,2660.6,2659.5,0.7698]
[1730922096167,0.38881028,2660.5,2659.5,0.7698]
[1730922096368,0.34337567,2660.4,2659.5,0.7698]
[1730922096567,0.04523433,2660.3,2659.5,0.7698]
[1730922096768,0.34337567,2660.2,2659.5,0.7698]
[1730922097112,0.04503402,2660.1,2659.5,0.7698]
[1730922098283,0.34340938,2660.0,2659.5,0.7698]
[1730922098611,0.48882502,2660.2,2659.5,0.7698]
[1730922098774,0.34346224,2660.1,2659.5,0.7698]
[1730922099112,0.27122732,2660.6,2659.5,0.7698]
[1730922099300,0.34350834,2660.5,2659.5,0.7698]
[1730922099616,0.07075053,2660.5,2659.5,0.7698]
[1730922099803,0.75687417,2660.7,2659.5,0.7698]
[1730922100000,0.756875,2660.9,2659.5,0.7698]
[1730922101588,0.7704,2660.8,2659.5,0.7698]
[1730922106836,0.1206,2660.8,2659.5,0.7698]
[1730922108442,0.89429334,2660.8,2659.5,0.7698]
[1730922109729,1.29082289,2660.8,2659.5,0.7698]
[1730922110125,3.60495,2660.8,2659.5,0.7698]
[1730922110337,1.29082289,2660.8,2659.5,0.7698]
[1730922111125,2.32128474,2660.7,2659.5,0.7698]
[1730922114403,2.32128474,2660.6,2659.5,0.7698]
[1730922115142,2.71241574,2660.6,2659.5,0.7698]
[1730922115443,2.32128474,2660.4,2659.5,0.7698]
[1730922120512,2.32254345,2660.4,2659.5,0.7698]
[1730922120752,2.32254345,2660.3,2659.5,0.7698]
[1730922121045,2.32254345,2660.4,2659.5,0.7698]
[1730922121345,2.32254345,2660.3,2659.5,0.7698]
[1730922124255,2.32254345,2660.4,2659.5,0.7698]
[1730922124562,2.32254345,2660.3,2659.5,0.7698]
[1730922125118,2.32254345,2660.4,2659.5,0.7698]
[1730922125318,2.32254345,2660.5,2659.5,0.7698]
[1730922125765,2.32254345,2660.4,2659.5,0.7698]
[1730922126972,2.32254345,2660.5,2659.5,0.7698]
[1730922127273,0.56,2661.6,2659.7,0.01]
[1730922127464,0.7698,2661.4,2659.8,0.7607]
[1730922128291,0.7698,2661.4,2659.8,0.81707864]
[1730922128458,0.76683276,2661.7,2660.0,0.01]
[1730922128664,0.815,2661.9,2660.4,0.55]
[1730922128866,0.815,2661.9,2660.5,0.861157]
[1730922129094,0.815,2661.9,2660.7,0.786]
[1730922129260,0.815,2662.2,2660.8,0.86114995]
[1730922129465,0.815,2662.4,2661.0,0.786]
[1730922129700,0.815,2662.4,2661.2,0.7544]
[1730922130443,0.815,2662.4,2661.3,0.8295476]
[1730922130950,3.20691191,2662.9,2661.3,0.8295476]
[1730922130951,0.8226,2662.9,2661.3,0.8295476]
[1730922131151,0.48506748,2662.8,2661.3,0.8295476]
[1730922131396,0.08211629,2662.8,2661.3,0.8295476]
[1730922131765,0.08211629,2662.8,2661.4,0.81074574]
[1730922131982,0.08211629,2662.8,2661.6,0.7544]
[1730922132795,0.07052517,2662.8,2661.6,0.7544]
[1730922132996,0.76346886,2662.9,2661.6,0.7544]
[1730922133195,0.7544,2663.0,2661.6,0.7544]
[1730922133402,0.85711523,2662.9,2661.6,0.7544]
[1730922133696,0.55,2662.7,2661.6,0.7544]
[1730922134051,2.86494293,2662.7,2661.6,0.7544]
[1730922134256,0.55,2662.7,2661.6,0.7544]
[1730922134870,0.55,2662.7,2661.4,0.05634574]
[1730922134871,0.55,2662.5,2661.4,0.05634574]
[1730922135058,0.7916,2662.2,2660.9,0.7598]
[1730922135256,0.55,2661.9,2660.9,0.7598]
[1730922135971,0.7916,2662.0,2660.9,0.7598]
[1730922136173,0.31065429,2661.9,2660.9,0.7598]
[1730922136410,0.7916,2662.0,2660.9,0.7598]
[1730922137157,0.55,2661.9,2660.9,0.7598]
[1730922142218,1.54744332,2662.0,2660.9,0.7598]
[1730922142520,0.55,2661.9,2660.9,0.7598]
[1730922144423,1.54744332,2662.0,2660.9,0.7598]
[1730922145137,0.75584332,2662.0,2660.9,0.7598]
[1730922145422,3.43765909,2662.9,2661.0,0.8715488]
[1730922145628,1.12501523,2662.9,2661.2,0.7964]
[1730922145850,1.12501523,2662.9,2661.3,0.87154022]
[1730922145985,0.30711523,2662.9,2661.3,0.87154022]
[1730922146186,0.7544,2663.0,2661.3,0.87154022]
[1730922146412,0.7544,2663.0,2661.5,0.813]
[1730922146617,0.7544,2663.0,2661.6,0.88812955]
[1730922146984,0.7544,2663.0,2661.6,0.813]
[1730922148595,0.7544,2663.0,2661.7,0.07512956]
[1730922148800,0.7544,2663.0,2661.8,0.8071]
[1730922150386,1.53224026,2663.0,2661.8,0.80558396]
[1730922150586,0.7544,2663.0,2661.8,0.80558396]
[1730922154796,0.7544,2663.0,2662.0,0.827]
[1730922154797,0.76832743,2663.0,2662.0,0.827]
[1730922154995,1.5255,2663.4,2662.0,0.827]
[1730922155297,0.19171603,2663.3,2662.0,0.827]
[1730922155887,0.55,2663.2,2662.0,0.827]
[1730922157616,1.5255,2663.4,2662.0,0.827]
[1730922157617,0.7544,2663.4,2662.0,0.827]
[1730922157812,0.06532,2664.0,2662.3,0.7686]
[1730922157997,0.06532,2664.0,2662.5,0.7686]
[1730922158219,0.7762,2663.8,2662.5,0.7686]
[1730922159498,0.55,2663.7,2662.5,0.7686]
[1730922159994,0.7762,2663.8,2662.5,0.7686]
[1730922171614,0.7762,2663.8,2662.6,0.07510727]
[1730922171853,0.76001665,2664.0,2662.4,0.55]
[1730922172055,0.7762,2663.9,2662.6,0.7688]
[1730922172300,0.55,2664.3,2662.8,0.7688]
[1730922172657,1.3188,2664.3,2662.8,0.7688]
[1730922173006,0.20759487,2664.2,2662.8,0.7688]
[1730922173791,0.7688,2664.3,2663.0,0.55]
[1730922173973,0.75714872,2664.4,2663.2,0.7688]
[1730922174326,0.7688,2664.4,2663.2,0.7688]
[1730922178103,1.5409,2664.4,2663.2,0.7688]
[1730922179808,0.55,2664.3,2663.2,0.7688]
[1730922180106,0.20909,2664.2,2663.2,0.7688]
[1730922182806,0.55,2664.1,2663.2,0.7688]
[1730922182961,0.20909,2664.2,2663.2,0.7688]
[1730922189987,1.54340687,2664.4,2663.2,0.7688]
[1730922196349,3.86488461,2664.4,2663.2,0.7688]
[1730922196647,2.32147774,2664.3,2663.2,0.7688]
[1730922197547,3.12867774,2664.3,2663.2,0.7688]
[1730922197749,2.32147774,2664.2,2663.2,0.7688]
[1730922197959,0.31286777,2664.1,2663.2,0.7688]
[1730922198256,2.63434551,2664.1,2663.2,0.7688]
[1730922198399,2.87147774,2664.0,2663.2,0.7688]
[1730922198600,2.32147774,2663.9,2663.2,0.7688]
[1730922198851,2.32147774,2663.8,2663.2,0.7688]
[1730922199004,0.23214777,2663.7,2663.2,0.7688]
[1730922199553,2.55362551,2663.7,2663.2,0.7688]
[1730922200957,2.32147774,2663.6,2663.2,0.7688]
[1730922201442,2.32488037,2663.6,2663.2,0.7688]
[1730922201827,2.55702814,2663.7,2663.2,0.7688]
[1730922202051,2.32488037,2663.6,2663.2,0.7688]
[1730922202933,2.32488037,2663.7,2663.2,0.7688]
[1730922203130,2.32488037,2663.5,2663.2,0.7688]
[1730922203820,2.32488037,2663.6,2663.2,0.7688]
[1730922206056,2.32488037,2663.5,2663.2,0.7688]
[1730922206436,2.32488037,2663.4,2663.2,0.7688]
[1730922206638,2.32488037,2663.3,2663.2,0.7688]
[1730922207060,2.32488037,2663.3,2663.2,0.0012]
[1730922207260,2.82860445,2663.3,2663.2,0.0012]
[1730922207486,2.83287719,2663.3,2663.2,0.0012]
[1730922208285,2.83287719,2663.3,2662.0,0.07511529]
[1730922209287,2.83286455,2663.3,2662.0,0.55]
[1730922209612,2.83286455,2663.3,2662.0,0.62511531]
[1730922209978,2.83286455,2663.3,2662.1,0.7612]
[1730922210279,2.61242693,2663.2,2662.1,0.7612]
[1730922210936,2.32914047,2663.0,2662.1,0.7612]
[1730922211135,2.32914047,2662.8,2662.1,0.7612]
[1730922211438,2.32914047,2662.7,2662.1,0.7612]
[1730922211664,0.31397405,2662.6,2662.1,0.7612]
[1730922211849,2.32914047,2662.8,2662.1,0.7612]
[1730922212047,0.28328646,2663.2,2662.1,0.7612]
[1730922212048,2.32914047,2662.9,2662.1,0.7612]
[1730922212263,2.32914047,2663.0,2662.1,0.7612]
[1730922212464,2.59038316,2663.0,2662.1,0.7612]
[1730922212848,2.32914047,2662.9,2662.1,0.7612]
[1730922213409,2.59038316,2663.0,2662.1,0.7612]
[1730922213621,2.32914047,2662.9,2662.1,0.7612]
[1730922213763,2.32914047,2663.3,2662.3,0.7567]
[1730922213963,2.32564828,2663.4,2662.3,0.7567]
[1730922214173,3.09384024,2663.4,2662.3,0.7567]
[1730922214864,0.76819196,2663.4,2662.3,0.7567]
[1730922215096,2.32564828,2663.5,2662.3,0.7567]
[1730922215356,2.82953874,2663.5,2662.3,0.7567]
[1730922215593,2.32564828,2663.5,2662.3,0.7567]
[1730922216274,2.32564828,2663.5,2662.4,0.83621374]
[1730922217312,2.32564828,2663.8,2662.4,0.83621374]
[1730922217599,2.32564828,2663.8,2661.9,0.60812918]
[1730922217600,2.32564828,2663.8,2662.6,0.7622]
[1730922217801,2.32564828,2663.9,2662.8,0.7622]
[1730922218121,2.32564828,2663.8,2663.0,0.7622]
[1730922218401,2.32564828,2663.9,2663.0,0.7622]
[1730922218606,2.32564828,2663.8,2663.0,0.7622]
[1730922219174,2.32564828,2663.9,2663.0,0.7622]
[1730922220675,0.27132563,2664.0,2663.0,0.7622]
[1730922220676,2.32564828,2663.8,2663.0,0.7622]
[1730922220888,2.32564828,2663.9,2663.0,0.7622]
[1730922222113,2.59697391,2664.0,2663.0,0.7622]
[1730922222302,2.32564828,2663.9,2663.0,0.7622]
[1730922223562,2.32472152,2663.9,2663.0,0.7622]
[1730922223762,2.92996394,2663.9,2663.0,0.7622]
[1730922224993,0.60524242,2663.9,2663.0,0.7622]
[1730922225316,1.84897541,2663.8,2663.0,0.7622]
[1730922225462,2.32472152,2663.6,2663.0,0.7622]
[1730922225665,2.32472152,2663.6,2663.1,0.07509527]
[1730922225895,2.32472152,2663.7,2663.2,0.7934]
[1730922226116,0.7637,2665.2,2663.2,0.7934]
[1730922226273,0.7637,2665.2,2662.9,0.01]
[1730922226274,2.26529,2665.2,2663.4,0.7934]
[1730922226479,2.26529,2665.2,2663.6,0.7934]
[1730922226814,2.32470393,2664.4,2663.7,0.86847587]
[1730922227265,2.55717432,2664.3,2663.7,0.7934]
[1730922227696,0.23247039,2664.3,2663.7,0.7934]
[1730922227912,2.32470393,2664.4,2663.7,0.7934]
[1730922228260,2.32425444,2664.4,2663.7,0.7934]
[1730922228664,2.32425444,2664.5,2663.7,0.7934]
[1730922228866,2.32425444,2664.6,2663.7,0.7934]
[1730922229083,2.32129,2665.2,2663.7,0.7934]
[1730922229084,2.32425444,2664.7,2663.7,0.7934]
[1730922229279,2.32425444,2664.7,2663.1,0.02]
[1730922229280,2.32425444,2664.7,2663.9,0.7748]
[1730922229490,2.32425444,2664.7,2663.1,0.02]
[1730922229491,2.32425444,2664.8,2664.1,0.7748]
[1730922229717,0.50358846,2664.8,2664.1,0.7748]
[1730922229917,2.32425444,2664.9,2664.1,0.7748]
[1730922230268,2.32425444,2665.0,2664.1,0.7748]
[1730922230500,2.32425444,2665.1,2664.1,0.7748]
[1730922230684,2.71163018,2665.3,2663.9,0.7841]
[1730922230685,2.32425444,2665.3,2663.9,0.7841]
[1730922230889,2.32425444,2665.4,2664.1,0.7841]
[1730922231092,2.90413224,2665.4,2664.1,0.7841]
[1730922231782,2.32425444,2665.3,2664.1,0.7841]
[1730922232402,3.12385444,2665.3,2664.1,0.7841]
[1730922233048,0.7996,2665.3,2664.1,0.7841]
[1730922233245,3.1203037,2665.3,2664.3,0.8231]
[1730922233455,2.63273407,2665.2,2664.3,0.8231]
[1730922233948,2.3207037,2665.1,2664.3,0.8231]
[1730922234257,0.55,2665.0,2664.3,0.8231]
[1730922234470,2.3207037,2664.9,2664.3,0.8231]
[1730922235253,0.55,2665.0,2664.3,0.8231]
[1730922235254,2.3207037,2664.8,2664.3,0.8231]
[1730922235458,0.23207037,2664.7,2664.3,0.8231]
[1730922235806,3.0772037,2664.8,2664.3,0.8231]
[1730922236008,3.0772037,2664.8,2664.2,0.05629296]
[1730922236248,2.3207037,2664.7,2664.2,0.05629296]
[1730922236459,2.8707037,2664.7,2664.0,0.8234]
[1730922236624,2.3207037,2664.5,2662.5,0.01]
[1730922236813,0.23207037,2664.4,2662.6,0.8234]
[1730922237018,1.3065,2664.3,2662.6,0.8234]
[1730922237350,2.3207037,2664.3,2662.6,0.8234]
[1730922237554,0.23207037,2664.4,2662.8,0.8234]
[1730922237911,0.23207037,2664.4,2662.9,0.8234]
[1730922238323,0.23207037,2664.4,2663.1,0.8001]
[1730922238524,2.31933833,2664.7,2663.1,0.8001]